fUST/lending_fUST_20250422
["ID","MTS","AMOUNT","RATE_DAILY","PERIOD"]
[358561508,1745262639110,-500.0,0.00024646,2]
[358561509,1745262639119,-500.0,0.00024646,2]
[358561510,1745262639129,-500.0,0.00024646,2]
[358561511,1745262639138,-500.0,0.00024646,2]
[358561512,1745262639147,-500.0,0.00024646,2]
[358561513,1745262639156,-500.0,0.00024646,2]
[358561514,1745262639165,-500.0,0.00024646,2]
[358561515,1745262639174,-500.0,0.00024646,2]
[358561516,1745262639184,-500.0,0.00024646,2]
[358561517,1745262639193,-500.0,0.00024646,2]
[358561518,1745262639203,-500.0,0.00024646,2]
[358561519,1745262639212,-500.0,0.00024646,2]
[358561520,1745262639222,-500.0,0.00024646,2]
[358561521,1745262639231,-14103.70497626,0.00024649,3]
[358561522,1745262639240,-160.0,0.00024649,3]
[358561523,1745262639249,-160.0,0.00024649,3]
[358561524,1745262639259,-160.0,0.00024649,3]
[358561525,1745262639268,-160.0,0.00024649,3]
[358561526,1745262639277,-457.0300305,0.00024649,3]
[358561527,1745262639286,-160.0,0.00024649,3]
[358561528,1745262639295,-12541.86041158,0.00024649,3]
[358561529,1745262639305,-420.65680271,0.00024649,3]
[358561530,1745262639314,-500.0,0.00024658,2]
[358561531,1745262639323,-501.98168086,0.00024673,2]
[358561532,1745262639333,-500.0,0.00024673,2]
[358561533,1745262639342,-460.1726574,0.00024675,2]
[358561534,1745262639351,-151.0,0.000247,5]
[358561535,1745262639360,-151.0,0.000247,5]
[358561536,1745262639370,-151.0,0.000247,6]
[358561537,1745262639379,-151.0,0.000247,7]
[358561538,1745262639388,-460.1726574,0.00024737,2]
[358561539,1745262639398,-45115.3987709,0.0002475,2]
[358561540,1745262639408,-304.3,0.00024782,2]
[358561541,1745262639417,-151.0,0.000248,7]
[358561542,1745262639426,-151.0,0.000248,9]
[358561543,1745262639436,-151.0,0.000248,5]
[358561544,1745262639445,-151.0,0.000248,10]
[358561545,1745262639454,-151.0,0.000248,8]
[358561546,1745262639464,-151.0,0.000248,6]
[358561547,1745262639474,-151.0,0.000248,6]
[358561548,1745262639484,-1444.88579886,0.000248,2]
[358561549,1745262639493,-460.1726574,0.000248,2]
[358561550,1745262639503,-481.62859962,0.00024844,2]
[358561551,1745262639512,-1626.85496357,0.00024852,2]
[358561552,1745262639521,-4293.11315958,0.00024852,2]
[358561553,1745262639531,-1626.85496357,0.00024853,2]
[358561554,1745262639541,-500.0,0.00024853,2]
[358561555,1745262639550,-191.35619527,0.00024853,2]
[358561556,1745262639560,-510.12285207,0.00024853,2]
[358561557,1745262639570,-20855.81476367,0.00024854,2]
[358561558,1745262639579,-4293.11315958,0.00024859,2]
[358561559,1745262639588,-4677.31454597,0.00024861,2]
[358561560,1745262639598,-4293.11315958,0.00024863,2]
[358561561,1745262639607,-481.62859962,0.00024867,2]
[358561562,1745262639616,-160.0,0.00024868,2]
[358561563,1745262639625,-165.61349575,0.00024873,2]
[358561564,1745262639635,-504.38493982,0.00024873,2]
[358561565,1745262639645,-502.04367879,0.00024873,2]
[358561566,1745262639654,-500.0,0.00024873,2]
[358561567,1745262639663,-500.0,0.00024873,2]
[358561568,1745262639672,-500.0,0.00024873,2]
[358561569,1745262639682,-500.0,0.00024873,2]
[358561570,1745262639692,-508.01292362,0.00024873,2]
[358561571,1745262639701,-161.49626907,0.00024873,2]
[358561572,1745262639711,-500.0,0.00024873,2]
[358561573,1745262639720,-400.78744329,0.00024873,2]
[358561574,1745262639730,-500.0,0.00024873,2]
[358561575,1745262639740,-456.79815765,0.00024873,2]
[358561576,1745262639749,-500.73937476,0.00024873,2]
[358561577,1745262639759,-500.0,0.00024873,2]
[358561578,1745262639769,-500.0,0.00024873,2]
[358561579,1745262639778,-500.69298108,0.00024873,2]
[358561580,1745262639787,-259.35233976,0.00024873,2]
[358561581,1745262639796,-152.69624676,0.00024873,2]
[358561582,1745262639806,-500.0,0.00024873,2]
[358561583,1745262639815,-500.0,0.00024873,2]
[358561584,1745262639824,-499.64,0.00024873,2]
[358561585,1745262639834,-500.0,0.00024873,2]
[358561586,1745262639843,-500.0,0.00024873,2]
[358561587,1745262639853,-501.18585351,0.00024873,2]
[358561588,1745262639863,-253.95554746,0.00024873,2]
[358561589,1745262639874,-500.0,0.00024873,2]
[358561590,1745262639885,-500.0,0.00024873,2]
[358561591,1745262639895,-300.0,0.00024873,2]
[358561592,1745262639905,-185.70874679,0.00024873,2]
[358561593,1745262639915,-500.0,0.00024873,2]
[358561594,1745262639926,-500.0,0.00024873,2]
[358561595,1745262639936,-500.0,0.00024873,2]
[358561596,1745262639945,-500.0,0.00024873,2]
[358561597,1745262639954,-481.62859962,0.00024875,2]
[358561598,1745262639965,-20855.81476367,0.00024877,2]
[358561599,1745262639974,-4677.31454597,0.00024877,2]
[358561601,1745262639984,-20855.81476367,0.00024879,2]
[358561603,1745262639994,-4677.31454597,0.00024883,2]
[358561604,1745262640003,-4293.11315958,0.00024883,2]
[358561606,1745262640013,-4677.31454597,0.00024886,2]
[358561607,1745262640022,-3141.7,0.00024886,2]
[358561609,1745262640031,-3141.7,0.00024886,2]
[358561610,1745262640042,-1626.85496357,0.00024888,2]
[358561612,1745262640059,-481.62859962,0.0002489,2]
[358561613,1745262640068,-1626.85496357,0.00024891,2]
[358561614,1745262640078,-20855.81476367,0.00024894,2]
[358561615,1745262640087,-162.21770877,0.00024899,2]
[358561616,1745262640098,-32714.0,0.000249,2]
[358561617,1745262640107,-151.0,0.000249,7]
[358561618,1745262640118,-151.0,0.000249,9]
[358561619,1745262640128,-151.0,0.000249,9]
[358561620,1745262640138,-151.0,0.000249,8]
[358561621,1745262640147,-151.0,0.000249,6]
[358561622,1745262640157,-151.0,0.000249,5]
[358561623,1745262640166,-151.0,0.000249,10]
[358561625,1745262640175,-188.724678,0.000249,7]
[358561626,1745262640192,-188.724678,0.000249,7]
[358561627,1745262640204,-151.0,0.000249,7]
[358561628,1745262640215,-151.0,0.000249,7]
[358561629,1745262640225,-151.0,0.000249,7]
[358561630,1745262640235,-241.813845,0.000249,7]
[358561631,1745262640245,-241.813845,0.000249,7]
[358561632,1745262640255,-151.0,0.000249,8]
[358561633,1745262640265,-1013.809181,0.000249,2]
[358561634,1745262640275,-151.0,0.000249,7]
[358561635,1745262640284,-155.043777,0.000249,7]
[358561636,1745262640294,-151.0,0.000249,7]
[358561637,1745262640304,-151.0,0.000249,7]
[358561638,1745262640314,-208.758867,0.000249,7]
[358561639,1745262640323,-208.758867,0.000249,7]
[358561640,1745262640333,-675031.13014795,0.000249,2]
[358561641,1745262640350,-496.6078658,0.000249,2]
[358561642,1745262640362,-4907.44664022,0.000249,2]
[358561643,1745262640374,-14343.96876503,0.000249,2]
[358561644,1745262640383,-151.0,0.000249,7]
[358561645,1745262640393,-151.0,0.000249,7]
[358561646,1745262640403,-151.0,0.000249,7]
[358561647,1745262640413,-255.725998,0.000249,7]
[358561648,1745262640423,-255.725998,0.000249,7]
[358561649,1745262640432,-481.62859962,0.00024963,2]
[358561650,1745262640442,-500.0,0.00024973,2]
[358561651,1745262640452,-500.0,0.00024973,2]
[358561652,1745262640462,-500.0,0.00024973,2]
[358561653,1745262640472,-243.97155435,0.00024973,2]
[358561654,1745262640482,-500.0,0.00024973,2]
[358561655,1745262640492,-500.0,0.00024973,2]
[358561656,1745262640502,-435.25530178,0.00024973,2]
[358561657,1745262640512,-536.00693123,0.00024973,2]
[358561658,1745262640522,-501.57283112,0.00024973,2]
[358561659,1745262640531,-500.0,0.00024973,2]
[358561660,1745262640542,-536.51387392,0.00024973,2]
[358561661,1745262640552,-500.0,0.00024973,2]
[358561662,1745262640561,-502.76693689,0.00024973,2]
[358561664,1745262640571,-500.0,0.00024973,2]
[358561665,1745262640581,-507.44086856,0.00024973,2]
[358561667,1745262640590,-500.0,0.00024973,2]
[358561679,1745262640706,-502.33006453,0.00024973,2]
[358561680,1745262640715,-500.0,0.00024973,2]
[358561681,1745262640725,-3141.7,0.00024989,2]
[358561682,1745262640735,-481.62859962,0.0002499,2]
[358561683,1745262640744,-1444.88579886,0.0002499,2]
[358561684,1745262640754,-58271.70443818,0.00025,2]
[358561686,1745262640764,-8440.94595109,0.00025,3]
[358561689,1745262640774,-9560.72660773,0.00025,7]
[358561692,1745262640784,-839.72553703,0.00025,2]
[358561695,1745262640793,-99800.0,0.00025,2]
[358561698,1745262640803,-172.0,0.00025,2]
[358561700,1745262640812,-600.4535579,0.00025,2]
[358561702,1745262640821,-151.0,0.00025,7]
[358561704,1745262640831,-151.0,0.00025,7]
[358561706,1745262640841,-151.0,0.00025,7]
[358561708,1745262640850,-151.0,0.00025,7]
[358561710,1745262640860,-151.0,0.00025,7]
[358561712,1745262640869,-201.610328,0.00025,7]
[358561713,1745262640879,-151.0,0.00025,7]
[358561714,1745262640888,-151.151527,0.00025,7]
[358561715,1745262640898,-151.0,0.00025,2]
[358561716,1745262640907,-151.0,0.00025,7]
[358561717,1745262640916,-151.0,0.00025,7]
[358561718,1745262640926,-4177.0,0.00025,2]
[358561719,1745262640936,-160.0,0.00025,7]
[358561720,1745262640946,-151.0,0.00025,5]
[358561721,1745262640956,-151.0,0.00025,9]
[358561722,1745262640965,-151.0,0.00025,8]
[358561723,1745262640975,-151.0,0.00025,7]
[358561725,1745262640985,-188.724678,0.00025,7]
[358561727,1745262640994,-188.724678,0.00025,7]
[358561728,1745262641003,-151.0,0.00025,7]
[358561730,1745262641013,-151.0,0.00025,7]
[358561732,1745262641022,-151.0,0.00025,7]
[358561734,1745262641031,-241.813845,0.00025,7]
[358561736,1745262641041,-160.0,0.00025,7]
[358561738,1745262641053,-241.813845,0.00025,7]
[358561740,1745262641062,-151.0,0.00025,7]
[358561742,1745262641071,-151.0,0.00025,7]
[358561744,1745262641080,-407.120372,0.00025,7]
[358561746,1745262641091,-407.120372,0.00025,7]
[358561748,1745262641100,-151.0,0.00025,7]
[358561750,1745262641109,-151.0,0.00025,7]
[358561752,1745262641119,-1262.406618,0.00025,2]
[358561754,1745262641129,-1262.406618,0.00025,2]
[358561756,1745262641139,-151.0,0.00025,7]
[358561758,1745262641148,-991.593347,0.00025,7]
[358561760,1745262641158,-151.0,0.00025,7]
[358561763,1745262641168,-991.593347,0.00025,7]
[358561765,1745262641177,-151.0,0.00025,7]
[358561767,1745262641186,-151.0,0.00025,7]
[358561769,1745262641195,-151.0,0.00025,7]
[358561771,1745262641204,-177.661064,0.00025,7]
[358561773,1745262641214,-177.661064,0.00025,7]
[358561774,1745262641223,-151.0,0.00025,7]
[358561776,1745262641233,-194.451482,0.00025,7]
[358561778,1745262641242,-165.398397,0.00025,7]
[358561780,1745262641251,-194.451482,0.00025,7]
[358561783,1745262641261,-151.0,0.00025,7]
[358561785,1745262641271,-153.451874,0.00025,7]
[358561787,1745262641280,-244.706353,0.00025,7]
[358561789,1745262641289,-244.706353,0.00025,7]
[358561791,1745262641298,-151.0,0.00025,7]
[358561793,1745262641308,-1000.0,0.00025,2]
[358561795,1745262641317,-160.0,0.00025,7]
[358561797,1745262641328,-151.0,0.00025,7]
[358561799,1745262641338,-151.0,0.00025,7]
[358561801,1745262641348,-151.0,0.00025,7]
[358561803,1745262641358,-151.0,0.00025,7]
[358561805,1745262641367,-241.490505,0.00025,7]
[358561807,1745262641376,-151.0,0.00025,7]
[358561809,1745262641386,-160.0,0.00025,7]
[358561811,1745262641396,-208.758867,0.00025,7]
[358561813,1745262641406,-208.758867,0.00025,7]
[358561815,1745262641415,-151.0,0.00025,7]
[358561817,1745262641426,-151.0,0.00025,7]
[358561819,1745262641435,-189.952517,0.00025,7]
[358561821,1745262641444,-160.0,0.00025,7]
[358561823,1745262641454,-255.725998,0.00025,7]
[358561825,1745262641463,-255.725998,0.00025,7]
[358561827,1745262641473,-900.0,0.00025469,3]
[358561829,1745262641482,-481.62859962,0.0002549,2]
[358561832,1745262641491,-15019.08774159,0.000255,2]
[358561834,1745262641502,-1000.0,0.000255,2]
[358561836,1745262641513,-420.0,0.00025573,2]
[358561838,1745262641522,-500.0,0.00025636,2]
[358561840,1745262641531,-420.0,0.0002569,2]
[358561842,1745262641541,-238.68369723,0.00025912,2]
[358561844,1745262641550,-500.0,0.00025959,2]
[358561846,1745262641559,-517.41566205,0.00026,2]
[358561848,1745262641568,-19900.0,0.00026,2]
[358561850,1745262641578,-7757.0,0.00026,2]
[358561852,1745262641587,-155.063928,0.00026,7]
[358561854,1745262641597,-407.120372,0.00026,7]
[358561856,1745262641606,-407.120372,0.00026,7]
[358561858,1745262641616,-151.0,0.00026,7]
[358561860,1745262641625,-1262.406618,0.00026,2]
[358561862,1745262641635,-1262.406618,0.00026,2]
[358561864,1745262641644,-991.593347,0.00026,7]
[358561866,1745262641654,-991.593347,0.00026,7]
[358561868,1745262641664,-151.0,0.00026,7]
[358561870,1745262641673,-600.0,0.00026516,2]
[358561872,1745262641683,-500.0,0.00026536,2]
[358561874,1745262641692,-481.62859962,0.0002678,2]
[358561876,1745262641701,-963.25719924,0.0002679,2]
[358561878,1745262641711,-103146.13695217,0.000268,4]
[358561880,1745262641721,-151.0,0.000268,7]
[358561882,1745262641730,-151.0,0.000268,7]
[358561884,1745262641739,-151.0,0.000268,7]
[358561886,1745262641749,-151.0,0.000268,7]
[358561888,1745262641758,-172.203451,0.000268,7]
[358561890,1745262641767,-151.151527,0.000268,7]
[358561892,1745262641777,-151.0,0.000268,2]
[358561894,1745262641786,-151.0,0.000268,7]
[358561896,1745262641796,-151.0,0.000268,7]
[358561898,1745262641805,-151.0,0.000268,7]
[358561900,1745262641815,-188.724678,0.000268,7]
[358561902,1745262641824,-188.724678,0.000268,7]
[358561904,1745262641834,-151.0,0.000268,7]
[358561906,1745262641843,-151.0,0.000268,7]
[358561908,1745262641852,-151.0,0.000268,7]
[358561910,1745262641862,-151.0,0.000268,7]
[358561912,1745262641871,-151.0,0.000268,7]
[358561914,1745262641880,-225.261716,0.000268,7]
[358561916,1745262641890,-241.813845,0.000268,7]
[358561918,1745262641899,-241.813845,0.000268,7]
[358561920,1745262641908,-151.0,0.000268,7]
[358561922,1745262641918,-151.0,0.000268,7]
[358561924,1745262641927,-151.0,0.000268,7]
[358561926,1745262641937,-151.0,0.000268,7]
[358561928,1745262641946,-151.0,0.000268,7]
[358561930,1745262641956,-151.0,0.000268,7]
[358561932,1745262641966,-177.661064,0.000268,7]
[358561934,1745262641975,-177.661064,0.000268,7]
[358561936,1745262641984,-151.0,0.000268,7]
[358561938,1745262641993,-194.451482,0.000268,7]
[358561940,1745262642002,-194.451482,0.000268,7]
[358561942,1745262642011,-151.0,0.000268,7]
[358561944,1745262642020,-244.706353,0.000268,7]
[358561946,1745262642029,-244.706353,0.000268,7]
[358561948,1745262642039,-151.0,0.000268,7]
[358561950,1745262642051,-151.0,0.000268,7]
[358561952,1745262642061,-151.0,0.000268,7]
[358561954,1745262642070,-151.0,0.000268,7]
[358561956,1745262642079,-151.0,0.000268,7]
[358561958,1745262642089,-208.758867,0.000268,7]
[358561960,1745262642099,-208.758867,0.000268,7]
[358561962,1745262642108,-151.0,0.000268,7]
[358561964,1745262642119,-151.0,0.000268,7]
[358561966,1745262642128,-255.725998,0.000268,7]
[358561968,1745262642138,-255.725998,0.000268,7]
[358561970,1745262642148,-3657.21139561,0.00027,2]
[358561972,1745262642157,-339.40491329,0.00027,2]
[358561974,1745262642167,-312.84021666,0.00027,3]
[358561976,1745262642176,-500.0,0.0002718,2]
[358561978,1745262642186,-500.0,0.0002718,2]
[358561980,1745262642195,-500.0,0.00027233,2]
[358561982,1745262642204,-298.35976474,0.00027233,2]
[358561984,1745262642214,-500.0,0.00027233,2]
[358561986,1745262642223,-517.15891689,0.00027233,2]
[358561988,1745262642232,-298.16591741,0.00027233,2]
[358561990,1745262642241,-500.0,0.00027233,2]
[358561992,1745262642251,-500.0,0.00027233,2]
[358561994,1745262642261,-500.0,0.00027233,2]
[358561996,1745262642270,-500.0,0.00027233,2]
[358561998,1745262642279,-481.62859962,0.00027377,2]
[358562000,1745262642288,-407.120372,0.00027387,7]
[358562002,1745262642298,-407.120372,0.00027387,7]
[358562004,1745262642307,-151.0,0.00027387,7]
[358562006,1745262642317,-1262.406618,0.00027387,2]
[358562008,1745262642326,-1262.406618,0.00027387,2]
[358562010,1745262642336,-991.593347,0.00027387,7]
[358562012,1745262642345,-991.593347,0.00027387,7]
[358562014,1745262642355,-151.0,0.00027387,7]
[358562016,1745262642364,-160.0,0.00027397,3]
[358562018,1745262642373,-151.0,0.00027397,7]
[358562020,1745262642382,-151.0,0.00027397,7]
[358562022,1745262642392,-184.62551,0.00027397,7]
[358562024,1745262642401,-151.0,0.00027397,7]
[358562026,1745262642411,-151.0,0.00027397,7]
[358562028,1745262642420,-191.920311,0.00027397,7]
[358562030,1745262642430,-10000.0,0.00027397,2]
[358562032,1745262642439,-10000.0,0.00027397,3]
[358562034,1745262642450,-10000.0,0.00027397,4]
[358562036,1745262642459,-10000.0,0.00027397,5]
[358562047,1745262642547,-3583.25230198,0.00027397,6]
[358562049,1745262642556,-196.341091,0.00027397,120]
[358562051,1745262642566,-500.0,0.00027397,2]
[358562053,1745262642575,-665.604403,0.00027422,2]
[358562055,1745262642584,-481.62859962,0.0002749,2]
[358562057,1745262642594,-22861.0556916,0.000275,2]
[358562059,1745262642603,-151.0,0.000275,7]
[358562061,1745262642613,-154.718988,0.000275,7]
[358562063,1745262642623,-151.0,0.000275,7]
[358562065,1745262642633,-153.297797,0.000275,7]
[358562067,1745262642643,-151.0,0.000275,7]
[358562069,1745262642654,-151.0,0.000275,7]
[358562071,1745262642664,-151.151527,0.000275,7]
[358562073,1745262642674,-151.0,0.000275,2]
[358562075,1745262642683,-151.0,0.000275,7]
[358562077,1745262642694,-151.0,0.000275,7]
[358562079,1745262642704,-188.724678,0.000275,7]
[358562081,1745262642714,-188.724678,0.000275,7]
[358562082,1745262642724,-151.0,0.000275,7]
[358562083,1745262642733,-151.0,0.000275,7]
[358562084,1745262642743,-241.813845,0.000275,7]
[358562085,1745262642752,-241.813845,0.000275,7]
[358562086,1745262642762,-587.0,0.00027744,2]
[358562087,1745262642772,-172.27151334,0.00028,30]
[358562088,1745262642781,-587.0,0.00028,2]
[358562089,1745262642791,-900.0,0.0002816,5]
[358562090,1745262642802,-2309.2380714,0.000285,4]
[358562092,1745262642813,-1000.0,0.00028767,2]
[358562093,1745262642822,-500.0,0.00028973,5]
[358562094,1745262642833,-500.0,0.00028973,5]
[358562095,1745262642842,-565.60613541,0.00028973,5]
[358562096,1745262642852,-500.0,0.00028973,5]
[358562097,1745262642861,-500.97274281,0.00028973,5]
[358562098,1745262642871,-500.0,0.00028973,5]
[358562099,1745262642880,-500.0,0.00028973,5]
[358562100,1745262642889,-500.0,0.00028973,5]
[358562101,1745262642899,-481.62859962,0.0002898,2]
[358562103,1745262642909,-407.120372,0.0002899,7]
[358562105,1745262642918,-407.120372,0.0002899,7]
[358562109,1745262642927,-151.0,0.0002899,7]
[358562111,1745262642937,-1262.406618,0.0002899,2]
[358562113,1745262642947,-1262.406618,0.0002899,2]
[358562115,1745262642957,-151.0,0.0002899,7]
[358562117,1745262642967,-991.593347,0.0002899,7]
[358562119,1745262642976,-991.593347,0.0002899,7]
[358562121,1745262642986,-151.0,0.0002899,7]
[358562123,1745262642995,-151.0,0.0002899,7]
[358562125,1745262643007,-151.0,0.0002899,7]
[358562127,1745262643017,-151.0,0.0002899,7]
[358562129,1745262643026,-208.758867,0.0002899,7]
[358562131,1745262643036,-208.758867,0.0002899,7]
[358562133,1745262643050,-481.62859962,0.0002899,2]
[358562135,1745262643060,-151.0,0.0002899,7]
[358562137,1745262643069,-151.0,0.0002899,7]
[358562139,1745262643079,-255.725998,0.0002899,7]
[358562141,1745262643088,-255.725998,0.0002899,7]
[358562143,1745262643098,-500.0,0.00028999,2]
[358562145,1745262643108,-500.0,0.00028999,2]
[358562147,1745262643117,-62765.65536485,0.00029,7]
[358562149,1745262643127,-63627.53758935,0.00029,7]
[358562232,1745262643896,-34653.73133715,0.00029,7]
[358562253,1745262644106,-435.04346559,0.00029,7]
[358562256,1745262644118,-305.21753407,0.00029,7]
[358562258,1745262644131,-7615.53009351,0.00029,7]
[358562490,1745262646372,-19248.39754911,0.00029,7]
[358564495,1745263051462,500.0,0.00018827,2]
[358564498,1745263574647,305.17566939,0.000189,2]
[358564510,1745263721119,64190.69436698,0.00018787,120]
[358564519,1745263724426,19801.67575948,0.00025,120]
[358564521,1745263729901,603.999999,0.0002,120]
[358564552,1745263838706,-250.0,0.000227,2]
[358564554,1745263838716,-1000.0,0.000228,2]
[358564556,1745263838725,-211.37708776,0.000229,2]
[358564558,1745263838734,-233.36227,0.00023753,2]
[358564560,1745263838744,-305.17566939,0.000239,2]
[358564562,1745263838753,-300.0,0.00024625,2]
[358564564,1745263838762,-300.0,0.00024626,2]
[358564566,1745263838772,-7261.08678451,0.00024626,2]
[358564569,1745263838789,-5306.96437009,0.00024626,2]
[358564571,1745263838798,-160.0,0.00024626,2]
[358564573,1745263838807,-458.83453329,0.00024806,2]
[358564575,1745263838816,-193.451076,0.000249,7]
[358564577,1745263838826,-193.451076,0.000249,7]
[358564579,1745263838835,-151.0,0.000249,7]
[358564581,1745263838845,-151.0,0.000249,7]
[358564583,1745263838854,-167.966,0.000249,8]
[358564584,1745263838863,-1190.9214942,0.000249,2]
[358564585,1745263838872,-650.37818157,0.000249,2]
[358564586,1745263838882,-21022.50043526,0.000249,2]
[358564587,1745263838891,-151.0,0.00025,7]
[358564588,1745263838901,-151.0,0.00025,7]
[358564589,1745263838910,-151.0,0.00025,2]
[358564590,1745263838919,-151.0,0.00025,7]
[358564591,1745263838929,-193.451076,0.00025,7]
[358564592,1745263838939,-193.451076,0.00025,7]
[358564593,1745263838948,-151.0,0.00025,7]
[358564594,1745263838957,-151.0,0.00025,7]
[358564595,1745263838967,-152.0,0.00025343,2]
[358564596,1745263838976,-420.0,0.00026688,2]
[358564597,1745263838986,-546.687943,0.00026778,2]
[358564598,1745263838995,-151.0,0.000268,7]
[358564599,1745263839004,-151.0,0.000268,7]
[358564600,1745263839013,-151.0,0.000268,2]
[358564601,1745263839022,-151.0,0.000268,7]
[358564602,1745263839032,-193.451076,0.000268,7]
[358564603,1745263839041,-193.451076,0.000268,7]
[358564604,1745263839051,-151.0,0.000268,7]
[358564605,1745263839060,-151.0,0.000268,7]
[358564606,1745263839069,-420.0,0.00026809,2]
[358564607,1745263839078,-312.84021666,0.00027,3]
[358564608,1745263839088,-312.84021666,0.00027,3]
[358564609,1745263839097,-3657.21139561,0.00027,2]
[358564610,1745263839107,-339.40491329,0.00027,2]
[358564611,1745263839116,-196.341091,0.00027397,120]
[358564612,1745263839125,-22861.0556916,0.000275,2]
[358564613,1745263839135,-2309.2380714,0.00027549,4]
[358564614,1745263839144,-1190.92149419,0.00027793,2]
[358564615,1745263839154,-1188.47016157,0.0002799,7]
[358564616,1745263839163,-312.84021666,0.00028,10]
[358564617,1745263839172,-1577.15519262,0.000285,7]
[358564618,1745263839182,-800.0,0.00028739,2]
[358564619,1745263839191,-11047.93356,0.00028753,2]
[358564620,1745263839200,-262.13,0.00028753,2]
[358564621,1745263839209,-800.0,0.00028774,2]
[358564622,1745263839218,-498.05175966,0.0002878,2]
[358564623,1745263839228,-800.0,0.00028813,2]
[358564624,1745263839237,-221.85598252,0.00028824,2]
[358564625,1745263839247,-800.0,0.00028825,2]
[358564626,1745263839256,-800.0,0.00028838,2]
[358564627,1745263839265,-800.0,0.00028846,2]
[358564628,1745263839275,-277.5677145,0.00028856,2]
[358564629,1745263839285,-800.0,0.00028866,2]
[358564630,1745263839294,-500.0,0.00028867,2]
[358564631,1745263839303,-500.0,0.00028867,2]
[358564632,1745263839313,-500.0,0.00028867,2]
[358564633,1745263839322,-500.0,0.00028867,2]
[358564634,1745263839331,-500.0,0.00028867,2]
[358564635,1745263839341,-500.0,0.00028867,2]
[358564636,1745263839351,-500.0,0.00028867,2]
[358564637,1745263839360,-500.0,0.00028867,2]
[358564638,1745263839370,-500.0,0.00028867,2]
[358564639,1745263839379,-382.70692903,0.00028867,2]
[358564640,1745263839388,-500.0,0.00028867,2]
[358564641,1745263839397,-500.0,0.00028867,2]
[358564642,1745263839407,-500.0,0.00028867,2]
[358564643,1745263839416,-500.0,0.00028867,2]
[358564644,1745263839426,-500.0,0.00028867,2]
[358564645,1745263839436,-500.0,0.00028867,2]
[358564646,1745263839450,-500.0,0.00028867,2]
[358564647,1745263839459,-500.0,0.00028867,2]
[358564648,1745263839469,-500.0,0.00028867,2]
[358564649,1745263839478,-500.0,0.00028867,2]
[358564650,1745263839489,-500.0,0.00028867,2]
[358564651,1745263839499,-500.0,0.00028867,2]
[358564652,1745263839508,-500.0,0.00028867,2]
[358564653,1745263839518,-500.0,0.00028867,2]
[358564654,1745263839528,-500.0,0.00028867,2]
[358564655,1745263839538,-500.0,0.00028867,2]
[358564656,1745263839548,-500.0,0.00028867,2]
[358564657,1745263839557,-500.0,0.00028867,2]
[358564658,1745263839566,-500.0,0.00028867,2]
[358564659,1745263839575,-500.0,0.00028867,2]
[358564660,1745263839585,-500.0,0.00028867,2]